[Event "Titled Tuesday Blitz March 21 Late 2023"]
[White "Remolar Gallen, Jose"]
[Black "Fernandez Guillen, Ernesto J."]
[WhiteFideId "2215187"]
[BlackFideId "3512428"]
[WhiteElo "2223"]
[BlackElo "2423"]
[Result "1/2-1/2"]
[Round "09"]
[TimeControl "180+2"]
[Date "2023.03.21"]
[WhiteClock "0:00:03"]
[BlackClock "0:00:09"]

1. e4 {[%clk 0:02:57]}  e5 {[%clk 0:02:43]} 2. Nf3 {[%clk 0:02:56]}  Nc6 {[%clk 0:02:43]} 3. Bb5 {[%clk 0:02:57]}  f5 {[%clk 0:02:42]} 4. Nc3 {[%clk 0:02:54]}  fxe4 {[%clk 0:02:42]} 5. Nxe4 {[%clk 0:02:54]}  d5 {[%clk 0:02:43]} 6. Ng3 {[%clk 0:02:48]}  Bd6 {[%clk 0:02:31]} 7. d4 {[%clk 0:02:38]}  e4 {[%clk 0:02:31]} 8. Ne5 {[%clk 0:02:38]}  Ne7 {[%clk 0:02:30]} 9. Qh5+ {[%clk 0:02:17]}  g6 {[%clk 0:02:29]} 10. Qh6 {[%clk 0:02:14]}  Bxe5 {[%clk 0:02:21]} 11. dxe5 {[%clk 0:02:12]}  Be6 {[%clk 0:02:14]} 12. Bg5 {[%clk 0:02:05]}  Qd7 {[%clk 0:02:10]} 13. O-O-O {[%clk 0:01:45]}  O-O-O {[%clk 0:01:50]} 14. Bf6 {[%clk 0:01:35]}  a6 {[%clk 0:01:38]} 15. Bxc6 {[%clk 0:01:27]}  Qxc6 {[%clk 0:01:39]} 16. Bxe7 {[%clk 0:01:23]}  Rd7 {[%clk 0:01:37]} 17. Bf6 {[%clk 0:01:19]}  Re8 {[%clk 0:01:37]} 18. Qe3 {[%clk 0:01:17]}  Qb5 {[%clk 0:01:36]} 19. Qa7 {[%clk 0:01:04]}  c5 {[%clk 0:01:36]} 20. Qa8+ {[%clk 0:01:00]}  Kc7 {[%clk 0:01:36]} 21. Qxe8 {[%clk 0:00:59]}  Bf7 {[%clk 0:01:31]} 22. Qf8 {[%clk 0:00:55]}  Qc4 {[%clk 0:01:30]} 23. Kb1 {[%clk 0:00:35]}  Qb5 {[%clk 0:01:23]} 24. e6 {[%clk 0:00:24]}  Bxe6 {[%clk 0:01:21]} 25. Be5+ {[%clk 0:00:24]}  Kb6 {[%clk 0:01:21]} 26. Rhe1 {[%clk 0:00:15]}  Qc4 {[%clk 0:01:18]} 27. b3 {[%clk 0:00:13]}  Qb5 {[%clk 0:01:16]} 28. Qe8 {[%clk 0:00:13]}  Qc6 {[%clk 0:01:15]} 29. Ne2 {[%clk 0:00:10]}  d4 {[%clk 0:01:14]} 30. Nf4 {[%clk 0:00:09]}  Bf5 {[%clk 0:01:13]} 31. h3 {[%clk 0:00:04]}  h5 {[%clk 0:00:59]} 32. Rg1 {[%clk 0:00:04]}  d3 {[%clk 0:00:58]} 33. cxd3 {[%clk 0:00:03]}  exd3 {[%clk 0:00:58]} 34. g4 {[%clk 0:00:03]}  hxg4 {[%clk 0:00:56]} 35. hxg4 {[%clk 0:00:04]}  Be4 {[%clk 0:00:53]} 36. Bc3 {[%clk 0:00:04]}  g5 {[%clk 0:00:41]} 37. Nh3 {[%clk 0:00:02]}  d2+ {[%clk 0:00:35]} 38. Kb2 {[%clk 0:00:02]}  Bg6 {[%clk 0:00:31]} 39. Qe5 {[%clk 0:00:02]}  Rd5 {[%clk 0:00:29]} 40. Qe3 {[%clk 0:00:02]}  Rd3 {[%clk 0:00:29]} 41. Qe2 {[%clk 0:00:02]}  Rxc3 {[%clk 0:00:21]} 42. Kxc3 {[%clk 0:00:02]}  Qd6 {[%clk 0:00:14]} 43. Kb2 {[%clk 0:00:01]}  Qd4+ {[%clk 0:00:14]} 44. Ka3 {[%clk 0:00:02]}  Qb4+ {[%clk 0:00:13]} 45. Kb2 {[%clk 0:00:02]}  Qd4+ {[%clk 0:00:14]} 46. Ka3 {[%clk 0:00:03]}  Qb4+ {[%clk 0:00:10]} 47. Kb2 {[%clk 0:00:03]}  Qd4+ {[%clk 0:00:09]} 1/2-1/2


[Site "https://www.chess.com"]

[Event "Titled Tuesday Blitz March 21 Late 2023"]
[White "Bruedigam, Martin"]
[Black "Hamitevici, Vladimir"]
[WhiteFideId "24608033"]
[BlackFideId "13902393"]
[WhiteElo "2331"]
[BlackElo "2401"]
[Result "1-0"]
[Round "09"]
[TimeControl "180+2"]
[Date "2023.03.21"]
[WhiteClock "0:00:31"]
[BlackClock "0:00:12"]

1. d4 {[%clk 0:02:57]}  Nf6 {[%clk 0:02:58]} 2. c4 {[%clk 0:02:57]}  c5 {[%clk 0:02:57]} 3. d5 {[%clk 0:02:57]}  b5 {[%clk 0:02:57]} 4. cxb5 {[%clk 0:02:57]}  a6 {[%clk 0:02:58]} 5. bxa6 {[%clk 0:02:57]}  g6 {[%clk 0:02:57]} 6. Nc3 {[%clk 0:02:57]}  Bg7 {[%clk 0:02:58]} 7. e4 {[%clk 0:02:57]}  O-O {[%clk 0:02:57]} 8. Bd3 {[%clk 0:02:56]}  Qa5 {[%clk 0:02:42]} 9. Ne2 {[%clk 0:02:56]}  Bxa6 {[%clk 0:02:31]} 10. O-O {[%clk 0:02:54]}  d6 {[%clk 0:02:25]} 11. a4 {[%clk 0:02:52]}  Nbd7 {[%clk 0:02:05]} 12. Bxa6 {[%clk 0:02:47]}  Qxa6 {[%clk 0:02:06]} 13. Qc2 {[%clk 0:02:43]}  Rfb8 {[%clk 0:01:59]} 14. Rb1 {[%clk 0:02:41]}  Ne5 {[%clk 0:01:44]} 15. b3 {[%clk 0:02:39]}  Qd3 {[%clk 0:01:41]} 16. Qxd3 {[%clk 0:02:35]}  Nxd3 {[%clk 0:01:42]} 17. f3 {[%clk 0:02:29]}  Nd7 {[%clk 0:01:29]} 18. Bg5 {[%clk 0:02:13]}  Kf8 {[%clk 0:01:16]} 19. Rfd1 {[%clk 0:02:12]}  Nb4 {[%clk 0:01:10]} 20. Bd2 {[%clk 0:01:59]}  Ne5 {[%clk 0:00:51]} 21. Nb5 {[%clk 0:01:58]}  Ned3 {[%clk 0:00:34]} 22. Bc3 {[%clk 0:01:51]}  Rc8 {[%clk 0:00:31]} 23. Bxg7+ {[%clk 0:01:48]}  Kxg7 {[%clk 0:00:32]} 24. Nc1 {[%clk 0:01:48]}  Ne5 {[%clk 0:00:28]} 25. Nc3 {[%clk 0:01:14]}  f5 {[%clk 0:00:24]} 26. N1e2 {[%clk 0:01:12]}  c4 {[%clk 0:00:22]} 27. bxc4 {[%clk 0:01:08]}  Rxc4 {[%clk 0:00:23]} 28. Rd4 {[%clk 0:01:08]}  Rac8 {[%clk 0:00:20]} 29. Rxb4 {[%clk 0:01:07]}  Rxc3 {[%clk 0:00:17]} 30. Nxc3 {[%clk 0:01:06]}  Rxc3 {[%clk 0:00:18]} 31. a5 {[%clk 0:01:05]}  fxe4 {[%clk 0:00:13]} 32. fxe4 {[%clk 0:01:01]}  Nd3 {[%clk 0:00:13]} 33. Rxd3 {[%clk 0:00:57]}  Rxd3 {[%clk 0:00:14]} 34. Ra4 {[%clk 0:00:57]}  Rb3 {[%clk 0:00:12]} 35. a6 {[%clk 0:00:57]}  Rb8 {[%clk 0:00:13]} 36. a7 {[%clk 0:00:57]}  Ra8 {[%clk 0:00:14]} 37. Kf2 {[%clk 0:00:57]}  Kf6 {[%clk 0:00:15]} 38. Ke3 {[%clk 0:00:58]}  Ke5 {[%clk 0:00:15]} 39. Kd3 {[%clk 0:00:58]}  g5 {[%clk 0:00:15]} 40. g3 {[%clk 0:00:56]}  g4 {[%clk 0:00:16]} 41. Kc4 {[%clk 0:00:51]}  Kxe4 {[%clk 0:00:15]} 42. Kb5+ {[%clk 0:00:51]}  Kxd5 {[%clk 0:00:16]} 43. Kb6 {[%clk 0:00:52]}  h5 {[%clk 0:00:16]} 44. Ra5+ {[%clk 0:00:48]}  Kc4 {[%clk 0:00:13]} 45. Rxh5 {[%clk 0:00:46]}  e6 {[%clk 0:00:14]} 46. Rh6 {[%clk 0:00:43]}  Kd5 {[%clk 0:00:14]} 47. Rg6 {[%clk 0:00:37]}  e5 {[%clk 0:00:14]} 48. Rxg4 {[%clk 0:00:33]}  e4 {[%clk 0:00:14]} 49. Rg7 {[%clk 0:00:29]}  e3 {[%clk 0:00:11]} 50. Re7 {[%clk 0:00:29]}  Kd4 {[%clk 0:00:11]} 51. Kb7 {[%clk 0:00:29]}  Rxa7+ {[%clk 0:00:11]} 52. Kxa7 {[%clk 0:00:30]}  d5 {[%clk 0:00:11]} 53. h4 {[%clk 0:00:31]}  Kd3 {[%clk 0:00:12]} 54. h5 {[%clk 0:00:31]}  e2 {[%clk 0:00:13]} 55. h6 {[%clk 0:00:31]}  Kd2 {[%clk 0:00:12]} 56. h7 {[%clk 0:00:31]} 1-0


[Site "https://www.chess.com"]

[Event "Titled Tuesday Blitz March 21 Late 2023"]
[White "Mazurkiewicz, Michal"]
[Black "Vetoshko, Volodymyr"]
[WhiteFideId "1124943"]
[BlackFideId "14122480"]
[WhiteElo "2054"]
[BlackElo "2422"]
[Result "0-1"]
[Round "09"]
[TimeControl "180+2"]
[Date "2023.03.21"]
[WhiteClock "0:00:06"]
[BlackClock "0:00:09"]

1. e4 {[%clk 0:02:59]}  c5 {[%clk 0:02:58]} 2. Nf3 {[%clk 0:03:00]}  e6 {[%clk 0:02:59]} 3. d3 {[%clk 0:03:00]}  Nc6 {[%clk 0:02:57]} 4. g3 {[%clk 0:03:00]}  g6 {[%clk 0:02:32]} 5. Bg2 {[%clk 0:03:00]}  Bg7 {[%clk 0:02:32]} 6. O-O {[%clk 0:03:00]}  Nge7 {[%clk 0:02:32]} 7. Re1 {[%clk 0:03:00]}  O-O {[%clk 0:02:31]} 8. e5 {[%clk 0:03:01]}  Qc7 {[%clk 0:02:27]} 9. Qe2 {[%clk 0:03:01]}  Nd4 {[%clk 0:02:07]} 10. Nxd4 {[%clk 0:03:00]}  cxd4 {[%clk 0:02:08]} 11. Na3 {[%clk 0:02:56]}  Nc6 {[%clk 0:01:59]} 12. Bf4 {[%clk 0:02:44]}  g5 {[%clk 0:01:42]} 13. Bxg5 {[%clk 0:02:43]}  Nxe5 {[%clk 0:01:42]} 14. Bf4 {[%clk 0:02:34]}  f6 {[%clk 0:01:42]} 15. Bxe5 {[%clk 0:02:19]}  fxe5 {[%clk 0:01:38]} 16. Be4 {[%clk 0:02:19]}  d5 {[%clk 0:01:35]} 17. Bg2 {[%clk 0:02:19]}  Bd7 {[%clk 0:01:33]} 18. Qh5 {[%clk 0:02:04]}  b5 {[%clk 0:01:22]} 19. Rac1 {[%clk 0:01:56]}  Rf5 {[%clk 0:01:20]} 20. Qxf5 {[%clk 0:01:44]}  exf5 {[%clk 0:01:18]} 21. Bxd5+ {[%clk 0:01:45]}  Kf8 {[%clk 0:01:11]} 22. Bxa8 {[%clk 0:01:46]}  h5 {[%clk 0:00:35]} 23. Bg2 {[%clk 0:01:43]}  h4 {[%clk 0:00:35]} 24. c3 {[%clk 0:01:44]}  dxc3 {[%clk 0:00:26]} 25. Rxc3 {[%clk 0:01:44]}  Qd6 {[%clk 0:00:24]} 26. Rcc1 {[%clk 0:00:40]}  hxg3 {[%clk 0:00:24]} 27. hxg3 {[%clk 0:00:40]}  Qd4 {[%clk 0:00:25]} 28. Nc2 {[%clk 0:00:20]}  Qxb2 {[%clk 0:00:24]} 29. Ne3 {[%clk 0:00:20]}  f4 {[%clk 0:00:22]} 30. gxf4 {[%clk 0:00:20]}  exf4 {[%clk 0:00:22]} 31. Nd5 {[%clk 0:00:21]}  Bd4 {[%clk 0:00:21]} 32. Rf1 {[%clk 0:00:13]}  Bxf2+ {[%clk 0:00:18]} 33. Rxf2 {[%clk 0:00:14]}  Qxc1+ {[%clk 0:00:18]} 34. Rf1 {[%clk 0:00:15]}  Qc5+ {[%clk 0:00:17]} 35. Kh1 {[%clk 0:00:13]}  Bc6 {[%clk 0:00:14]} 36. Rxf4+ {[%clk 0:00:08]}  Kg7 {[%clk 0:00:14]} 37. Rf5 {[%clk 0:00:02]}  Qc1+ {[%clk 0:00:11]} 38. Kh2 {[%clk 0:00:01]}  Qh6+ {[%clk 0:00:11]} 39. Kg1 {[%clk 0:00:01]}  Bxd5 {[%clk 0:00:09]} 40. Rxd5 {[%clk 0:00:02]}  Qe3+ {[%clk 0:00:10]} 41. Kh2 {[%clk 0:00:03]}  b4 {[%clk 0:00:07]} 42. Be4 {[%clk 0:00:02]}  Qd2+ {[%clk 0:00:07]} 43. Kg3 {[%clk 0:00:02]}  Qxa2 {[%clk 0:00:07]} 44. Rd7+ {[%clk 0:00:03]}  Kf6 {[%clk 0:00:06]} 45. Rd6+ {[%clk 0:00:02]}  Ke5 {[%clk 0:00:06]} 46. Rh6 {[%clk 0:00:01]}  Kd4 {[%clk 0:00:04]} 47. Rd6+ {[%clk 0:00:01]}  Ke3 {[%clk 0:00:04]} 48. Kg4 {[%clk 0:00:01]}  Qg8+ {[%clk 0:00:02]} 49. Kf5 {[%clk 0:00:01]}  Qf8+ {[%clk 0:00:02]} 50. Ke5 {[%clk 0:00:01]}  Qe7+ {[%clk 0:00:02]} 51. Re6 {[%clk 0:00:02]}  Qc5+ {[%clk 0:00:02]} 52. Kf6 {[%clk 0:00:02]}  Kd2 {[%clk 0:00:02]} 53. Re5 {[%clk 0:00:01]}  Qd4 {[%clk 0:00:02]} 54. Ke6 {[%clk 0:00:02]}  b3 {[%clk 0:00:03]} 55. Rd5 {[%clk 0:00:02]}  Qc3 {[%clk 0:00:03]} 56. Kd6 {[%clk 0:00:03]}  b2 {[%clk 0:00:03]} 57. Rc5 {[%clk 0:00:04]}  Qxc5+ {[%clk 0:00:03]} 58. Kxc5 {[%clk 0:00:05]}  b1=Q {[%clk 0:00:04]} 59. d4 {[%clk 0:00:05]}  Qc1+ {[%clk 0:00:04]} 60. Kd5 {[%clk 0:00:05]}  Ke3 {[%clk 0:00:05]} 61. Bf5 {[%clk 0:00:06]}  Qd2 {[%clk 0:00:05]} 62. Be6 {[%clk 0:00:06]}  Qxd4+ {[%clk 0:00:06]} 63. Kc6 {[%clk 0:00:06]}  Qb6+ {[%clk 0:00:06]} 64. Kd7 {[%clk 0:00:07]}  a5 {[%clk 0:00:06]} 65. Bd5 {[%clk 0:00:07]}  Kd4 {[%clk 0:00:07]} 66. Bc6 {[%clk 0:00:07]}  Ke5 {[%clk 0:00:07]} 67. Ba4 {[%clk 0:00:06]}  Qd6+ {[%clk 0:00:07]} 68. Kc8 {[%clk 0:00:06]}  Qe7 {[%clk 0:00:07]} 69. Bd7 {[%clk 0:00:07]}  Kd6 {[%clk 0:00:08]} 70. Kb8 {[%clk 0:00:06]}  Qxd7 {[%clk 0:00:08]} 71. Ka8 {[%clk 0:00:06]}  Kc6 {[%clk 0:00:09]} 72. Kb8 {[%clk 0:00:06]}  Qb7# {[%clk 0:00:09]} 0-1


[Site "https://www.chess.com"]

[Event "Titled Tuesday Blitz March 21 Late 2023"]
[White "Marjanovic, Annamaria"]
[Black "Wagner, Dennis"]
[WhiteFideId "750930"]
[BlackFideId "24650684"]
[WhiteElo "2212"]
[BlackElo "2470"]
[Result "1/2-1/2"]
[Round "09"]
[TimeControl "180+2"]
[Date "2023.03.21"]
[WhiteClock "0:00:15"]
[BlackClock "0:00:31"]

1. c4 {[%clk 0:03:00]}  Nf6 {[%clk 0:02:52]} 2. g3 {[%clk 0:03:00]}  e6 {[%clk 0:02:44]} 3. Bg2 {[%clk 0:02:58]}  d5 {[%clk 0:02:45]} 4. Nf3 {[%clk 0:02:55]}  dxc4 {[%clk 0:02:45]} 5. Qa4+ {[%clk 0:02:53]}  Bd7 {[%clk 0:02:45]} 6. Qxc4 {[%clk 0:02:52]}  c5 {[%clk 0:02:46]} 7. Ne5 {[%clk 0:02:52]}  Qc8 {[%clk 0:02:46]} 8. O-O {[%clk 0:02:51]}  Nc6 {[%clk 0:02:46]} 9. Nxd7 {[%clk 0:02:44]}  Qxd7 {[%clk 0:02:47]} 10. Nc3 {[%clk 0:02:40]}  Be7 {[%clk 0:02:46]} 11. d3 {[%clk 0:02:40]}  O-O {[%clk 0:02:45]} 12. Be3 {[%clk 0:02:38]}  Rac8 {[%clk 0:02:40]} 13. Rac1 {[%clk 0:02:35]}  Nd4 {[%clk 0:02:37]} 14. a3 {[%clk 0:02:06]}  b5 {[%clk 0:02:35]} 15. Qa2 {[%clk 0:02:05]}  h5 {[%clk 0:02:24]} 16. Bxd4 {[%clk 0:01:57]}  cxd4 {[%clk 0:02:22]} 17. Ne4 {[%clk 0:01:57]}  Nd5 {[%clk 0:02:11]} 18. Qb1 {[%clk 0:01:32]}  h4 {[%clk 0:01:37]} 19. Rxc8 {[%clk 0:01:22]}  Rxc8 {[%clk 0:01:38]} 20. Rc1 {[%clk 0:01:22]}  Rc7 {[%clk 0:01:36]} 21. Nd2 {[%clk 0:01:15]}  Nb6 {[%clk 0:01:15]} 22. Nb3 {[%clk 0:01:07]}  e5 {[%clk 0:01:09]} 23. Rxc7 {[%clk 0:01:03]}  Qxc7 {[%clk 0:01:10]} 24. Qc1 {[%clk 0:00:54]}  Qxc1+ {[%clk 0:01:07]} 25. Nxc1 {[%clk 0:00:55]}  Na4 {[%clk 0:01:08]} 26. b4 {[%clk 0:00:55]}  Nc3 {[%clk 0:01:05]} 27. Kf1 {[%clk 0:00:50]}  Nb1 {[%clk 0:01:02]} 28. Bc6 {[%clk 0:00:38]}  Nxa3 {[%clk 0:01:02]} 29. Na2 {[%clk 0:00:38]}  f5 {[%clk 0:00:48]} 30. Ke1 {[%clk 0:00:36]}  Nc2+ {[%clk 0:00:19]} 31. Kd1 {[%clk 0:00:35]}  Nxb4 {[%clk 0:00:19]} 32. Nxb4 {[%clk 0:00:35]}  Bxb4 {[%clk 0:00:20]} 33. Bxb5 {[%clk 0:00:35]}  h3 {[%clk 0:00:18]} 34. Bd7 {[%clk 0:00:30]}  g6 {[%clk 0:00:18]} 35. g4 {[%clk 0:00:27]}  f4 {[%clk 0:00:08]} 36. g5 {[%clk 0:00:25]}  Be7 {[%clk 0:00:08]} 37. Bxh3 {[%clk 0:00:24]}  Bxg5 {[%clk 0:00:08]} 38. Be6+ {[%clk 0:00:24]}  Kf8 {[%clk 0:00:09]} 39. f3 {[%clk 0:00:22]}  Ke7 {[%clk 0:00:09]} 40. Bc8 {[%clk 0:00:19]}  Kd6 {[%clk 0:00:05]} 41. Kc2 {[%clk 0:00:19]}  Bh4 {[%clk 0:00:05]} 42. Kb3 {[%clk 0:00:19]}  Kc5 {[%clk 0:00:06]} 43. Be6 {[%clk 0:00:18]}  Be1 {[%clk 0:00:06]} 44. h3 {[%clk 0:00:18]}  g5 {[%clk 0:00:07]} 45. Bc4 {[%clk 0:00:17]}  Bd2 {[%clk 0:00:07]} 46. Be6 {[%clk 0:00:17]}  Bc3 {[%clk 0:00:08]} 47. Bd7 {[%clk 0:00:17]}  a5 {[%clk 0:00:08]} 48. Ba4 {[%clk 0:00:17]}  Kd6 {[%clk 0:00:09]} 49. Be8 {[%clk 0:00:17]}  Ke7 {[%clk 0:00:10]} 50. Bc6 {[%clk 0:00:15]}  Kf6 {[%clk 0:00:11]} 51. Bd7 {[%clk 0:00:13]}  Kg6 {[%clk 0:00:12]} 52. Be8+ {[%clk 0:00:13]}  Kh6 {[%clk 0:00:12]} 53. Ka4 {[%clk 0:00:12]}  Kg7 {[%clk 0:00:12]} 54. Kb3 {[%clk 0:00:12]}  Kf8 {[%clk 0:00:12]} 55. Bc6 {[%clk 0:00:12]}  Kf7 {[%clk 0:00:13]} 56. Bd7 {[%clk 0:00:13]}  Ke7 {[%clk 0:00:13]} 57. Bc6 {[%clk 0:00:13]}  Ke6 {[%clk 0:00:13]} 58. Bb5 {[%clk 0:00:13]}  Kf6 {[%clk 0:00:14]} 59. Bd7 {[%clk 0:00:13]}  Kg6 {[%clk 0:00:14]} 60. Be8+ {[%clk 0:00:13]}  Kg7 {[%clk 0:00:15]} 61. Bc6 {[%clk 0:00:12]}  Kh6 {[%clk 0:00:15]} 62. Be8 {[%clk 0:00:12]}  Kh7 {[%clk 0:00:16]} 63. Bd7 {[%clk 0:00:13]}  Kg8 {[%clk 0:00:17]} 64. Be8 {[%clk 0:00:13]}  Kf8 {[%clk 0:00:17]} 65. Bc6 {[%clk 0:00:13]}  Ke7 {[%clk 0:00:18]} 66. Bb5 {[%clk 0:00:14]}  Kd6 {[%clk 0:00:18]} 67. Be8 {[%clk 0:00:14]}  Kc7 {[%clk 0:00:19]} 68. Bb5 {[%clk 0:00:14]}  Kb6 {[%clk 0:00:19]} 69. Be8 {[%clk 0:00:14]}  Kc5 {[%clk 0:00:20]} 70. Ba4 {[%clk 0:00:14]}  Be1 {[%clk 0:00:20]} 71. Be8 {[%clk 0:00:14]}  Bf2 {[%clk 0:00:21]} 72. Ba4 {[%clk 0:00:14]}  Be3 {[%clk 0:00:22]} 73. Be8 {[%clk 0:00:15]}  Bd2 {[%clk 0:00:23]} 74. Ba4 {[%clk 0:00:16]}  Bb4 {[%clk 0:00:23]} 75. Be8 {[%clk 0:00:16]}  Kd6 {[%clk 0:00:23]} 76. Ba4 {[%clk 0:00:17]}  Ke7 {[%clk 0:00:24]} 77. Bb5 {[%clk 0:00:18]}  Kf6 {[%clk 0:00:24]} 78. Bc6 {[%clk 0:00:18]}  Kg6 {[%clk 0:00:25]} 79. Bd7 {[%clk 0:00:19]}  Kh5 {[%clk 0:00:26]} 80. Kc2 {[%clk 0:00:15]}  Kh4 {[%clk 0:00:26]} 81. Kd1 {[%clk 0:00:15]}  Kg3 {[%clk 0:00:25]} 82. Kc2 {[%clk 0:00:13]}  Kf2 {[%clk 0:00:25]} 83. Kd1 {[%clk 0:00:14]}  Ke3 {[%clk 0:00:26]} 84. Ba4 {[%clk 0:00:13]}  Bc5 {[%clk 0:00:26]} 85. Bb5 {[%clk 0:00:13]}  Bd6 {[%clk 0:00:26]} 86. Ba4 {[%clk 0:00:13]}  Bc7 {[%clk 0:00:27]} 87. Bb5 {[%clk 0:00:14]}  Bb6 {[%clk 0:00:27]} 88. Ba4 {[%clk 0:00:15]}  Bc5 {[%clk 0:00:28]} 89. Bb5 {[%clk 0:00:16]}  Bb4 {[%clk 0:00:28]} 90. Ba4 {[%clk 0:00:16]}  Kf2 {[%clk 0:00:28]} 91. Bb5 {[%clk 0:00:17]}  Kg2 {[%clk 0:00:29]} 92. Bd7 {[%clk 0:00:17]}  Kg3 {[%clk 0:00:30]} 93. Kc2 {[%clk 0:00:17]}  Kh4 {[%clk 0:00:29]} 94. Kd1 {[%clk 0:00:17]}  Bc3 {[%clk 0:00:30]} 95. Kc2 {[%clk 0:00:16]}  Kh5 {[%clk 0:00:30]} 96. Kb3 {[%clk 0:00:15]}  Kh4 {[%clk 0:00:30]} 97. Kc2 {[%clk 0:00:15]}  Kg3 {[%clk 0:00:31]} 1/2-1/2


[Site "https://www.chess.com"]

[Event "Titled Tuesday Blitz March 21 Late 2023"]
[White "Ambartsumova, Karina"]
[Black "aidenzhouu"]
[WhiteFideId "4166299"]
[WhiteElo "2300"]
[BlackElo "2471"]
[Result "1/2-1/2"]
[Round "09"]
[TimeControl "180+2"]
[Date "2023.03.21"]
[WhiteClock "0:00:02"]
[BlackClock "0:00:05"]

1. e4 {[%clk 0:03:00]}  c6 {[%clk 0:02:56]} 2. Ne2 {[%clk 0:02:59]}  d5 {[%clk 0:02:56]} 3. e5 {[%clk 0:03:00]}  c5 {[%clk 0:02:50]} 4. d4 {[%clk 0:02:58]}  Nc6 {[%clk 0:02:51]} 5. c3 {[%clk 0:02:57]}  Bf5 {[%clk 0:02:39]} 6. dxc5 {[%clk 0:02:53]}  Nxe5 {[%clk 0:02:37]} 7. Nd4 {[%clk 0:02:53]}  Bd7 {[%clk 0:02:35]} 8. Be2 {[%clk 0:02:45]}  e6 {[%clk 0:02:34]} 9. b4 {[%clk 0:02:43]}  Nf6 {[%clk 0:02:28]} 10. O-O {[%clk 0:02:40]}  Be7 {[%clk 0:02:27]} 11. Nd2 {[%clk 0:02:11]}  O-O {[%clk 0:02:20]} 12. N2b3 {[%clk 0:02:03]}  Nc6 {[%clk 0:02:04]} 13. b5 {[%clk 0:01:47]}  Na5 {[%clk 0:01:55]} 14. Ba3 {[%clk 0:01:27]}  Nc4 {[%clk 0:01:39]} 15. Bb4 {[%clk 0:01:23]}  e5 {[%clk 0:01:29]} 16. Nf3 {[%clk 0:01:18]}  Bxb5 {[%clk 0:01:30]} 17. a4 {[%clk 0:00:35]}  Ba6 {[%clk 0:01:27]} 18. Re1 {[%clk 0:00:29]}  e4 {[%clk 0:01:21]} 19. Nfd4 {[%clk 0:00:28]}  Nb2 {[%clk 0:01:20]} 20. Qc2 {[%clk 0:00:27]}  Bxe2 {[%clk 0:01:20]} 21. Qxb2 {[%clk 0:00:26]}  Bd3 {[%clk 0:01:07]} 22. Rad1 {[%clk 0:00:24]}  Rc8 {[%clk 0:01:04]} 23. a5 {[%clk 0:00:19]}  Nd7 {[%clk 0:01:02]} 24. c6 {[%clk 0:00:16]}  bxc6 {[%clk 0:01:01]} 25. Bxe7 {[%clk 0:00:16]}  Qxe7 {[%clk 0:01:01]} 26. Rxd3 {[%clk 0:00:17]}  c5 {[%clk 0:00:58]} 27. Nf5 {[%clk 0:00:15]}  Qf6 {[%clk 0:00:56]} 28. Rxd5 {[%clk 0:00:15]}  Ne5 {[%clk 0:00:55]} 29. Ng3 {[%clk 0:00:04]}  Nd3 {[%clk 0:00:51]} 30. Qd2 {[%clk 0:00:05]}  Nxe1 {[%clk 0:00:51]} 31. Qxe1 {[%clk 0:00:05]}  Qe6 {[%clk 0:00:43]} 32. c4 {[%clk 0:00:06]}  f5 {[%clk 0:00:42]} 33. h3 {[%clk 0:00:05]}  g6 {[%clk 0:00:25]} 34. Nxc5 {[%clk 0:00:05]}  Qe7 {[%clk 0:00:22]} 35. Nd7 {[%clk 0:00:04]}  Rfd8 {[%clk 0:00:21]} 36. Qd2 {[%clk 0:00:05]}  Qe6 {[%clk 0:00:15]} 37. Ne2 {[%clk 0:00:05]}  Kf7 {[%clk 0:00:12]} 38. Nf4 {[%clk 0:00:05]}  Qe7 {[%clk 0:00:08]} 39. Ne5+ {[%clk 0:00:05]}  Ke8 {[%clk 0:00:09]} 40. Qd4 {[%clk 0:00:03]}  Rxd5 {[%clk 0:00:08]} 41. cxd5 {[%clk 0:00:04]}  Rc1+ {[%clk 0:00:07]} 42. Kh2 {[%clk 0:00:04]}  Qg5 {[%clk 0:00:08]} 43. g3 {[%clk 0:00:04]}  Qd8 {[%clk 0:00:07]} 44. d6 {[%clk 0:00:04]}  Qxa5 {[%clk 0:00:06]} 45. d7+ {[%clk 0:00:05]}  Ke7 {[%clk 0:00:05]} 46. Nd5+ {[%clk 0:00:04]}  Kd8 {[%clk 0:00:05]} 47. Nf4 {[%clk 0:00:04]}  Ke7 {[%clk 0:00:04]} 48. Nd5+ {[%clk 0:00:02]}  Kd8 {[%clk 0:00:05]} 49. Nf4 {[%clk 0:00:02]}  Ke7 {[%clk 0:00:05]} 1/2-1/2


[Site "https://www.chess.com"]

[Event "Titled Tuesday Blitz March 21 Late 2023"]
[White "Sielecki, Christof"]
[Black "drdaro"]
[WhiteFideId "4620437"]
[WhiteElo "2443"]
[BlackElo "2417"]
[Result "1/2-1/2"]
[Round "09"]
[TimeControl "180+2"]
[Date "2023.03.21"]
[WhiteClock "0:00:21"]
[BlackClock "0:01:17"]

1. e4 {[%clk 0:03:00]}  g6 {[%clk 0:03:00]} 2. d4 {[%clk 0:03:00]}  Nf6 {[%clk 0:03:00]} 3. e5 {[%clk 0:02:56]}  Nh5 {[%clk 0:03:01]} 4. Nf3 {[%clk 0:02:56]}  d6 {[%clk 0:03:01]} 5. Bc4 {[%clk 0:02:55]}  d5 {[%clk 0:02:57]} 6. Be2 {[%clk 0:02:55]}  Ng7 {[%clk 0:02:57]} 7. c4 {[%clk 0:02:49]}  dxc4 {[%clk 0:02:52]} 8. Bxc4 {[%clk 0:02:46]}  c6 {[%clk 0:02:52]} 9. Qb3 {[%clk 0:02:31]}  Ne6 {[%clk 0:02:37]} 10. O-O {[%clk 0:02:24]}  Bg7 {[%clk 0:02:37]} 11. Rd1 {[%clk 0:02:18]}  O-O {[%clk 0:02:31]} 12. Nc3 {[%clk 0:02:18]}  Nd7 {[%clk 0:02:17]} 13. Bxe6 {[%clk 0:02:15]}  fxe6 {[%clk 0:02:16]} 14. Ng5 {[%clk 0:02:01]}  Nb6 {[%clk 0:02:09]} 15. Nxe6 {[%clk 0:01:56]}  Bxe6 {[%clk 0:02:10]} 16. Qxe6+ {[%clk 0:01:56]}  Kh8 {[%clk 0:02:11]} 17. Be3 {[%clk 0:01:56]}  Rc8 {[%clk 0:02:06]} 18. Rac1 {[%clk 0:01:55]}  Nd5 {[%clk 0:02:04]} 19. Nxd5 {[%clk 0:01:55]}  Qxd5 {[%clk 0:02:03]} 20. Qxd5 {[%clk 0:01:52]}  cxd5 {[%clk 0:02:04]} 21. Kf1 {[%clk 0:01:51]}  Kg8 {[%clk 0:02:01]} 22. Ke2 {[%clk 0:01:51]}  e6 {[%clk 0:01:57]} 23. Rxc8 {[%clk 0:01:48]}  Rxc8 {[%clk 0:01:57]} 24. Rc1 {[%clk 0:01:49]}  Rxc1 {[%clk 0:01:55]} 25. Bxc1 {[%clk 0:01:50]}  Kf7 {[%clk 0:01:56]} 26. g4 {[%clk 0:01:49]}  Ke7 {[%clk 0:01:55]} 27. f4 {[%clk 0:01:48]}  Kd7 {[%clk 0:01:51]} 28. Bd2 {[%clk 0:01:48]}  Bf8 {[%clk 0:01:50]} 29. Kf3 {[%clk 0:01:47]}  Be7 {[%clk 0:01:50]} 30. Kg3 {[%clk 0:01:44]}  Kc6 {[%clk 0:01:49]} 31. b3 {[%clk 0:01:43]}  Kd7 {[%clk 0:01:44]} 32. h4 {[%clk 0:01:32]}  h5 {[%clk 0:01:39]} 33. f5 {[%clk 0:01:30]}  exf5 {[%clk 0:01:34]} 34. gxf5 {[%clk 0:01:25]}  gxf5 {[%clk 0:01:35]} 35. Bg5 {[%clk 0:00:50]}  Bxg5 {[%clk 0:01:23]} 36. hxg5 {[%clk 0:00:50]}  Ke6 {[%clk 0:01:24]} 37. g6 {[%clk 0:00:40]}  Ke7 {[%clk 0:01:24]} 38. a4 {[%clk 0:00:20]}  a5 {[%clk 0:01:20]} 39. Kf3 {[%clk 0:00:19]}  h4 {[%clk 0:01:18]} 40. Kf4 {[%clk 0:00:19]}  Ke6 {[%clk 0:01:16]} 41. Kf3 {[%clk 0:00:20]}  Ke7 {[%clk 0:01:16]} 42. Kf4 {[%clk 0:00:20]}  Ke6 {[%clk 0:01:16]} 43. Kf3 {[%clk 0:00:21]}  Ke7 {[%clk 0:01:17]} 1/2-1/2


[Site "https://www.chess.com"]